[Event "Betsys MČR v online bleskovém šachu 2021"]
[Site "Chess.com"]
[Date "2021.04.17"]
[Round "2"]
[White "zdenav"]
[Black "CrisBenton4"]
[Result "1-0"]
[WhiteElo "1836"]
[BlackElo "1424"]
[TimeControl "180+1"]
[EndTime "9:17:03 PDT"]
[Termination "Uživatel zdenav zvítězil po vzdání soupeře"]

1. e4 {[%clk 0:03:00.9]} 1... e5 {[%clk 0:02:58]} 2. Nf3 {[%clk 0:03:00.8]} 2...
Nc6 {[%clk 0:02:57.9]} 3. Bc4 {[%clk 0:03:00.4]} 3... Bc5 {[%clk 0:02:57.8]} 4.
O-O {[%clk 0:03:00.3]} 4... Nf6 {[%clk 0:02:57.9]} 5. d3 {[%clk 0:03:00.4]} 5...
O-O {[%clk 0:02:57.6]} 6. Bg5 {[%clk 0:02:59.9]} 6... h6 {[%clk 0:02:56.6]} 7.
Bh4 {[%clk 0:02:58.9]} 7... a6 {[%clk 0:02:53.9]} 8. Nbd2 {[%clk 0:02:57.4]}
8... Be7 {[%clk 0:02:52]} 9. c3 {[%clk 0:02:55.1]} 9... b5 {[%clk 0:02:31.9]}
10. Bb3 {[%clk 0:02:54.3]} 10... Na5 {[%clk 0:02:30.5]} 11. Bc2 {[%clk
0:02:53.6]} 11... Nc6 {[%clk 0:02:26.1]} 12. Re1 {[%clk 0:02:52.4]} 12... Re8
{[%clk 0:02:25.4]} 13. h3 {[%clk 0:02:51.6]} 13... d6 {[%clk 0:02:22]} 14. d4
{[%clk 0:02:47.3]} 14... exd4 {[%clk 0:02:15.9]} 15. Nxd4 {[%clk 0:02:44.3]}
15... Nxd4 {[%clk 0:02:14]} 16. cxd4 {[%clk 0:02:44.1]} 16... Nd7 {[%clk
0:02:11.2]} 17. Bxe7 {[%clk 0:02:39.4]} 17... Qxe7 {[%clk 0:02:10.4]} 18. Nf3
{[%clk 0:02:38.6]} 18... Nf6 {[%clk 0:02:08.1]} 19. e5 {[%clk 0:02:37.7]} 19...
dxe5 {[%clk 0:02:06.2]} 20. dxe5 {[%clk 0:02:35]} 20... Nh5 {[%clk 0:01:53.4]}
21. Nd4 {[%clk 0:02:33.9]} 21... Bb7 {[%clk 0:01:47]} 22. Qxh5 {[%clk
0:02:31.9]} 22... Rad8 {[%clk 0:01:15.7]} 23. Nf5 {[%clk 0:02:29.4]} 23... Qe6
{[%clk 0:01:08.4]} 24. Bb3 {[%clk 0:02:22.8]} 24... Bd5 {[%clk 0:01:07.3]} 25.
Nd4 {[%clk 0:02:18.1]} 25... Qd7 {[%clk 0:00:56.9]} 26. Rad1 {[%clk 0:02:12.5]}
26... Bxb3 {[%clk 0:00:51.2]} 27. Nxb3 {[%clk 0:02:12.1]} 27... Qe7 {[%clk
0:00:50.9]} 28. Rxd8 {[%clk 0:02:10.2]} 28... Rxd8 {[%clk 0:00:50.8]} 29. Qf5
{[%clk 0:02:08.1]} 29... f6 {[%clk 0:00:44.2]} 30. Kf1 {[%clk 0:02:00.8]} 30...
fxe5 {[%clk 0:00:37.9]} 31. Qxe5 {[%clk 0:01:58.9]} 31... Qd7 {[%clk 0:00:36.7]}
32. Qe6+ {[%clk 0:01:57.8]} 32... Kf8 {[%clk 0:00:33.2]} 33. Qxd7 {[%clk
0:01:56.7]} 33... Rxd7 {[%clk 0:00:33.5]} 34. Rc1 {[%clk 0:01:56.5]} 34... Re7
{[%clk 0:00:25.1]} 35. f3 {[%clk 0:01:51.6]} 35... g5 {[%clk 0:00:15.5]} 36. Rc2
{[%clk 0:01:50.6]} 36... Kf7 {[%clk 0:00:13.3]} 37. Nd4 {[%clk 0:01:48.7]} 37...
Kg6 {[%clk 0:00:11.3]} 38. Nc6 {[%clk 0:01:46.9]} 38... Rd7 {[%clk 0:00:07]} 39.
Nb4 {[%clk 0:01:43.5]} 39... Rd1+ {[%clk 0:00:06.1]} 40. Ke2 {[%clk 0:01:42.7]}
40... Ra1 {[%clk 0:00:05.7]} 41. a3 {[%clk 0:01:38.2]} 41... a5 {[%clk
0:00:04.5]} 42. Nd5 {[%clk 0:01:36.7]} 42... Rg1 {[%clk 0:00:02.5]} 43. Kf2
{[%clk 0:01:34.9]} 43... Rd1 {[%clk 0:00:01.6]} 44. Nxc7 {[%clk 0:01:33.6]}
44... Rd7 {[%clk 0:00:02.1]} 45. Nxb5 {[%clk 0:01:33.1]} 45... Rb7 {[%clk
0:00:02]} 46. Nd4 {[%clk 0:01:29.8]} 46... Rd7 {[%clk 0:00:01.8]} 47. Nc6 {[%clk
0:01:28.8]} 47... Rb7 {[%clk 0:00:02]} 48. Nxa5 {[%clk 0:01:27.3]} 48... Rb6
{[%clk 0:00:01.7]} 49. Nc4 {[%clk 0:01:26.7]} 49... Rc6 {[%clk 0:00:02]} 50. b4
{[%clk 0:01:26.5]} 1-0

[Event "Betsys MČR v online bleskovém šachu 2021"]
[Site "Chess.com"]
[Date "2021.04.17"]
[Round "2"]
[White "mysacek1414"]
[Black "fera_v"]
[Result "0-1"]
[WhiteElo "1898"]
[BlackElo "2247"]
[TimeControl "180+1"]
[EndTime "9:17:04 PDT"]
[Termination "Uživatel fera_v zvítězil na čas"]

1. e4 {[%clk 0:03:00.9]} 1... e6 {[%clk 0:02:58.1]} 2. d3 {[%clk 0:03:01.4]}
2... d5 {[%clk 0:02:58.8]} 3. Qe2 {[%clk 0:03:01.8]} 3... Be7 {[%clk 0:02:56.5]}
4. Nf3 {[%clk 0:03:01.4]} 4... Nf6 {[%clk 0:02:55.4]} 5. g3 {[%clk 0:03:01.6]}
5... c5 {[%clk 0:02:55.1]} 6. Bg2 {[%clk 0:03:01.5]} 6... Nc6 {[%clk 0:02:55.6]}
7. O-O {[%clk 0:03:01.3]} 7... O-O {[%clk 0:02:55.6]} 8. e5 {[%clk 0:03:01.2]}
8... Nd7 {[%clk 0:02:56.1]} 9. c4 {[%clk 0:03:01.7]} 9... Nb6 {[%clk 0:02:52.1]}
10. h4 {[%clk 0:02:49.7]} 10... f5 {[%clk 0:02:35.1]} 11. exf6 {[%clk
0:02:15.9]} 11... Bxf6 {[%clk 0:02:34.5]} 12. Bg5 {[%clk 0:02:14]} 12... h6
{[%clk 0:02:26.8]} 13. Bxf6 {[%clk 0:02:11.6]} 13... Qxf6 {[%clk 0:02:27.4]} 14.
Nc3 {[%clk 0:02:09.7]} 14... Bd7 {[%clk 0:02:11.4]} 15. Rae1 {[%clk 0:02:05.6]}
15... Rad8 {[%clk 0:02:07.1]} 16. Ne5 {[%clk 0:01:36.2]} 16... Nd4 {[%clk
0:02:00.3]} 17. Qg4 {[%clk 0:01:22.1]} 17... Bc8 {[%clk 0:01:59.5]} 18. f4
{[%clk 0:01:12.7]} 18... Nf5 {[%clk 0:01:46.2]} 19. Kh2 {[%clk 0:01:05.5]} 19...
Kh7 {[%clk 0:01:32.7]} 20. b3 {[%clk 0:01:00.7]} 20... g6 {[%clk 0:01:18.8]} 21.
Qe2 {[%clk 0:00:18.7]} 21... Nd4 {[%clk 0:01:17.9]} 22. Qf2 {[%clk 0:00:14.1]}
22... a6 {[%clk 0:01:06.1]} 23. Bh3 {[%clk 0:00:13.5]} 23... Nf5 {[%clk
0:01:03]} 24. Bg2 {[%clk 0:00:12.9]} 24... h5 {[%clk 0:00:56.8]} 25. a4 {[%clk
0:00:12.1]} 25... Nh6 {[%clk 0:00:52.5]} 26. Kh1 {[%clk 0:00:11.8]} 26... Qf5
{[%clk 0:00:48.9]} 27. Qe2 {[%clk 0:00:07.2]} 27... Nf7 {[%clk 0:00:38.7]} 28.
Nxf7 {[%clk 0:00:03.8]} 28... Rxf7 {[%clk 0:00:37.3]} 29. a5 {[%clk 0:00:03.6]}
29... Qf6 {[%clk 0:00:33]} 0-1

[Event "Betsys MČR v online bleskovém šachu 2021"]
[Site "Chess.com"]
[Date "2021.04.17"]
[Round "2"]
[White "EliasD123"]
[Black "catanist19"]
[Result "1-0"]
[WhiteElo "1289"]
[BlackElo "1737"]
[TimeControl "180+1"]
[EndTime "9:17:04 PDT"]
[Termination "Uživatel EliasD123 zvítězil matem"]

1. e4 {[%clk 0:03:00.9]} 1... c5 {[%clk 0:02:59.1]} 2. Nf3 {[%clk 0:03:00.4]}
2... Nc6 {[%clk 0:02:58.6]} 3. d4 {[%clk 0:03:01]} 3... cxd4 {[%clk 0:02:58]} 4.
Nxd4 {[%clk 0:03:01.6]} 4... a6 {[%clk 0:02:57.1]} 5. Nc3 {[%clk 0:03:01.5]}
5... e6 {[%clk 0:02:56.2]} 6. Be3 {[%clk 0:03:00.4]} 6... Bb4 {[%clk 0:02:54.1]}
7. a3 {[%clk 0:02:58.8]} 7... Bxc3+ {[%clk 0:02:53.3]} 8. bxc3 {[%clk
0:02:59.4]} 8... Nf6 {[%clk 0:02:51.8]} 9. Bd3 {[%clk 0:02:56.2]} 9... Ne5
{[%clk 0:02:48.9]} 10. O-O {[%clk 0:02:51.8]} 10... Nxd3 {[%clk 0:02:47.7]} 11.
cxd3 {[%clk 0:02:47.6]} 11... b5 {[%clk 0:02:40.5]} 12. f4 {[%clk 0:02:44.9]}
12... Bb7 {[%clk 0:02:36.8]} 13. e5 {[%clk 0:02:36.6]} 13... Nd5 {[%clk
0:02:33.1]} 14. Qe2 {[%clk 0:02:30.9]} 14... Nxc3 {[%clk 0:02:29.7]} 15. Qc2
{[%clk 0:02:23.5]} 15... Rc8 {[%clk 0:02:21.4]} 16. f5 {[%clk 0:02:14.2]} 16...
Nd5 {[%clk 0:02:16.5]} 17. Qf2 {[%clk 0:02:11.3]} 17... O-O {[%clk 0:02:02.3]}
18. f6 {[%clk 0:02:08.7]} 18... Nxe3 {[%clk 0:01:52.2]} 19. Qxe3 {[%clk
0:02:03.6]} 19... h6 {[%clk 0:01:27.2]} 20. Rf3 {[%clk 0:01:55.6]} 20... Bxf3
{[%clk 0:01:23.7]} 21. Nxf3 {[%clk 0:01:51.2]} 21... Kh7 {[%clk 0:01:05.3]} 22.
Qe4+ {[%clk 0:01:44.5]} 22... g6 {[%clk 0:01:01.6]} 23. Qh4 {[%clk 0:01:40.5]}
23... Qb6+ {[%clk 0:00:56.2]} 24. Kh1 {[%clk 0:01:38.4]} 24... Qe3 {[%clk
0:00:49.7]} 25. Re1 {[%clk 0:01:25.1]} 25... Rc1 {[%clk 0:00:48]} 26. h3 {[%clk
0:01:05]} 26... Rxe1+ {[%clk 0:00:45.7]} 27. Nxe1 {[%clk 0:01:04]} 27... Rc8
{[%clk 0:00:37.8]} 28. Nf3 {[%clk 0:00:56.6]} 28... Rc1+ {[%clk 0:00:35.9]} 29.
Kh2 {[%clk 0:00:56.7]} 29... g5 {[%clk 0:00:29.2]} 30. Qh5 {[%clk 0:00:48.3]}
30... Qf4+ {[%clk 0:00:22]} 31. g3 {[%clk 0:00:41.5]} 31... Rc2+ {[%clk
0:00:21.7]} 32. Kh1 {[%clk 0:00:38.6]} 32... Qc1+ {[%clk 0:00:20.7]} 33. Ng1
{[%clk 0:00:38.6]} 33... Rc8 {[%clk 0:00:09.9]} 34. Qxf7+ {[%clk 0:00:36.2]}
34... Kh8 {[%clk 0:00:09.1]} 35. Qg7# {[%clk 0:00:36.4]} 1-0

[Event "Betsys MČR v online bleskovém šachu 2021"]
[Site "Chess.com"]
[Date "2021.04.17"]
[Round "2"]
[White "KarelZalesky"]
[Black "ffbp3q"]
[Result "0-1"]
[WhiteElo "1096"]
[BlackElo "2383"]
[TimeControl "180+1"]
[EndTime "9:17:06 PDT"]
[Termination "Uživatel ffbp3q zvítězil na čas"]

1. e4 {[%clk 0:02:58.7]} 1... c5 {[%clk 0:02:58.4]} 2. Nc3 {[%clk 0:02:57.4]}
2... Nc6 {[%clk 0:02:57.5]} 3. Nf3 {[%clk 0:02:55.6]} 3... e6 {[%clk 0:02:56.1]}
4. d4 {[%clk 0:02:51.5]} 4... cxd4 {[%clk 0:02:55.5]} 5. Nxd4 {[%clk 0:02:51.4]}
5... Qc7 {[%clk 0:02:55.8]} 6. Ndb5 {[%clk 0:02:45.7]} 6... Qb8 {[%clk
0:02:55.7]} 7. a3 {[%clk 0:02:42.1]} 7... a6 {[%clk 0:02:52.1]} 8. Nd4 {[%clk
0:02:40.6]} 8... Nf6 {[%clk 0:02:46]} 9. Be3 {[%clk 0:02:37.7]} 9... b5 {[%clk
0:02:40.2]} 10. Be2 {[%clk 0:02:27.2]} 10... Bb7 {[%clk 0:02:39.8]} 11. f3
{[%clk 0:02:15.1]} 11... Be7 {[%clk 0:02:02.4]} 12. Qd2 {[%clk 0:01:59.4]} 12...
Ne5 {[%clk 0:01:55.3]} 13. b3 {[%clk 0:01:43.3]} 13... O-O {[%clk 0:01:53.6]}
14. Nd1 {[%clk 0:01:05.5]} 14... d5 {[%clk 0:01:48.2]} 15. exd5 {[%clk
0:00:55.7]} 15... Nxd5 {[%clk 0:01:47.3]} 16. Bf2 {[%clk 0:00:38.9]} 16... Rd8
{[%clk 0:01:24.6]} 17. O-O {[%clk 0:00:35.2]} 17... Bd6 {[%clk 0:01:21.3]} 18.
c4 {[%clk 0:00:24.8]} 18... bxc4 {[%clk 0:01:16.9]} 19. bxc4 {[%clk 0:00:25]}
19... Ne7 {[%clk 0:01:02.5]} 20. Qb2 {[%clk 0:00:24.5]} 20... Qc7 {[%clk
0:00:50.5]} 21. Rb1 {[%clk 0:00:23.3]} 21... Rab8 {[%clk 0:00:49.4]} 22. Qa2
{[%clk 0:00:21.7]} 22... N5g6 {[%clk 0:00:43.4]} 23. g3 {[%clk 0:00:19.9]} 23...
Bc5 {[%clk 0:00:39.2]} 24. Nb3 {[%clk 0:00:14.7]} 24... Bxf2+ {[%clk 0:00:37.5]}
25. Nxf2 {[%clk 0:00:14.1]} 25... Nf5 {[%clk 0:00:35.8]} 26. Ne4 {[%clk
0:00:07.2]} 26... Ne3 {[%clk 0:00:33.1]} 27. Rf2 {[%clk 0:00:04.3]} 27... Ne5
{[%clk 0:00:27.1]} 0-1

[Event "Betsys MČR v online bleskovém šachu 2021"]
[Site "Chess.com"]
[Date "2021.04.17"]
[Round "2"]
[White "pepca"]
[Black "Ami2013"]
[Result "1-0"]
[WhiteElo "1511"]
[BlackElo "424"]
[TimeControl "180+1"]
[EndTime "9:17:07 PDT"]
[Termination "Uživatel pepca zvítězil matem"]

1. e4 {[%clk 0:03:00.9]} 1... e5 {[%clk 0:02:59.5]} 2. Nf3 {[%clk 0:03:00.4]}
2... Nc6 {[%clk 0:02:58.6]} 3. d4 {[%clk 0:03:00.2]} 3... Nf6 {[%clk 0:02:58.5]}
4. Bg5 {[%clk 0:02:53]} 4... Bb4+ {[%clk 0:02:55.2]} 5. Nc3 {[%clk 0:02:47.4]}
5... h6 {[%clk 0:02:48.1]} 6. dxe5 {[%clk 0:02:33.5]} 6... hxg5 {[%clk
0:02:40.9]} 7. exf6 {[%clk 0:02:33.1]} 7... Qxf6 {[%clk 0:02:37.9]} 8. Qd3
{[%clk 0:02:29.1]} 8... Qe6 {[%clk 0:02:35.3]} 9. Nxg5 {[%clk 0:02:25.8]} 9...
Qf6 {[%clk 0:02:28.6]} 10. Nf3 {[%clk 0:02:22.7]} 10... O-O {[%clk 0:02:25.2]}
11. O-O-O {[%clk 0:02:19]} 11... d6 {[%clk 0:02:08]} 12. Nd5 {[%clk 0:02:17.3]}
12... Qg6 {[%clk 0:01:55]} 13. Nxc7 {[%clk 0:02:11]} 13... Rb8 {[%clk
0:01:50.2]} 14. a3 {[%clk 0:02:03.1]} 14... Ba5 {[%clk 0:01:46.7]} 15. Nd5
{[%clk 0:01:59.7]} 15... Qh6+ {[%clk 0:01:31.7]} 16. Kb1 {[%clk 0:01:52.6]}
16... Bg4 {[%clk 0:01:26.4]} 17. Be2 {[%clk 0:01:47.7]} 17... b5 {[%clk
0:01:18.8]} 18. h3 {[%clk 0:01:46.3]} 18... Bh5 {[%clk 0:01:15.1]} 19. g4 {[%clk
0:01:45.6]} 19... Bg6 {[%clk 0:01:11.4]} 20. h4 {[%clk 0:01:37.2]} 20... b4
{[%clk 0:01:05.8]} 21. axb4 {[%clk 0:01:23.6]} 21... Nxb4 {[%clk 0:00:58.9]} 22.
Nxb4 {[%clk 0:01:21.1]} 22... Bxb4 {[%clk 0:00:55.1]} 23. h5 {[%clk 0:01:14.9]}
23... Bh7 {[%clk 0:00:52.6]} 24. g5 {[%clk 0:01:11]} 24... Qe6 {[%clk
0:00:44.7]} 25. Nd4 {[%clk 0:01:10.5]} 25... Qe5 {[%clk 0:00:40.7]} 26. Nc6
{[%clk 0:00:59.6]} 26... Qxg5 {[%clk 0:00:34.5]} 27. Nxb8 {[%clk 0:00:45.1]}
27... Qe5 {[%clk 0:00:30.6]} 28. Nd7 {[%clk 0:00:39.9]} 28... Qe7 {[%clk
0:00:19.6]} 29. Nxf8 {[%clk 0:00:37]} 29... Qxf8 {[%clk 0:00:19]} 30. Rdg1
{[%clk 0:00:29.2]} 30... Qb8 {[%clk 0:00:16.8]} 31. Qd4 {[%clk 0:00:22.6]} 31...
Ba3 {[%clk 0:00:15.4]} 32. Qxg7# {[%clk 0:00:21.9]} 1-0

[Event "Betsys MČR v online bleskovém šachu 2021"]
[Site "Chess.com"]
[Date "2021.04.17"]
[Round "2"]
[White "Milan_Jancek"]
[Black "tkokosek007"]
[Result "1-0"]
[WhiteElo "1819"]
[BlackElo "1400"]
[TimeControl "180+1"]
[EndTime "9:17:10 PDT"]
[Termination "Uživatel Milan_Jancek zvítězil na čas"]

1. c4 {[%clk 0:03:00.9]} 1... e5 {[%clk 0:02:57]} 2. Nc3 {[%clk 0:03:00.8]} 2...
Bc5 {[%clk 0:02:56.5]} 3. g3 {[%clk 0:03:00.3]} 3... d6 {[%clk 0:02:55.2]} 4.
Bg2 {[%clk 0:03:00.7]} 4... c6 {[%clk 0:02:55.4]} 5. d3 {[%clk 0:03:01]} 5...
Nf6 {[%clk 0:02:54.1]} 6. e4 {[%clk 0:02:40.1]} 6... h6 {[%clk 0:02:47.4]} 7.
Nge2 {[%clk 0:02:39.8]} 7... Bg4 {[%clk 0:02:45.7]} 8. O-O {[%clk 0:02:39.7]}
8... O-O {[%clk 0:02:44.6]} 9. h3 {[%clk 0:02:39.7]} 9... Be6 {[%clk 0:02:38.2]}
10. Kh2 {[%clk 0:02:39.8]} 10... Nbd7 {[%clk 0:02:28.5]} 11. Be3 {[%clk
0:02:39.3]} 11... a6 {[%clk 0:02:14.4]} 12. Qd2 {[%clk 0:02:36.7]} 12... Rc8
{[%clk 0:02:07.2]} 13. f4 {[%clk 0:02:36.1]} 13... exf4 {[%clk 0:02:02.8]} 14.
Nxf4 {[%clk 0:02:26.3]} 14... Bb6 {[%clk 0:01:44.1]} 15. Rf2 {[%clk 0:02:14.1]}
15... Ne5 {[%clk 0:01:34.1]} 16. Raf1 {[%clk 0:02:01.2]} 16... Qd7 {[%clk
0:01:10.4]} 17. b3 {[%clk 0:01:50.4]} 17... Bxe3 {[%clk 0:01:04.7]} 18. Qe2
{[%clk 0:01:15.9]} 18... Bxf2 {[%clk 0:01:02.2]} 19. Rxf2 {[%clk 0:01:13.6]}
19... Ng6 {[%clk 0:00:46.8]} 20. d4 {[%clk 0:01:10.4]} 20... Nxf4 {[%clk
0:00:40.2]} 21. Rxf4 {[%clk 0:01:09.4]} 21... d5 {[%clk 0:00:35.6]} 22. e5
{[%clk 0:01:09]} 22... Nh7 {[%clk 0:00:31.9]} 23. c5 {[%clk 0:01:03.1]} 23...
Ng5 {[%clk 0:00:30]} 24. h4 {[%clk 0:00:59.7]} 24... Ne4 {[%clk 0:00:21.3]} 25.
Bxe4 {[%clk 0:00:50.8]} 25... dxe4 {[%clk 0:00:21]} 26. Nxe4 {[%clk 0:00:50.5]}
26... Bd5 {[%clk 0:00:12.8]} 27. Nd6 {[%clk 0:00:50.4]} 27... Rcd8 {[%clk
0:00:05.6]} 28. Qh5 {[%clk 0:00:48.1]} 28... Be6 {[%clk 0:00:05.1]} 29. g4
{[%clk 0:00:40.3]} 29... Qe7 {[%clk 0:00:04.4]} 30. g5 {[%clk 0:00:37.2]} 30...
Bd5 {[%clk 0:00:03.8]} 31. gxh6 {[%clk 0:00:35.2]} 31... gxh6 {[%clk 0:00:01.7]}
32. Rg4+ {[%clk 0:00:34.9]} 1-0

[Event "Betsys MČR v online bleskovém šachu 2021"]
[Site "Chess.com"]
[Date "2021.04.17"]
[Round "2"]
[White "Koli05"]
[Black "Devasales"]
[Result "1-0"]
[WhiteElo "1730"]
[BlackElo "1165"]
[TimeControl "180+1"]
[EndTime "9:17:15 PDT"]
[Termination "Uživatel Koli05 zvítězil na čas"]

1. d4 {[%clk 0:02:58.6]} 1... d5 {[%clk 0:02:58.9]} 2. c4 {[%clk 0:02:57.5]}
2... e6 {[%clk 0:02:58.7]} 3. Nc3 {[%clk 0:02:56.4]} 3... Nf6 {[%clk 0:02:58.1]}
4. cxd5 {[%clk 0:02:55.8]} 4... Nxd5 {[%clk 0:02:55.5]} 5. e4 {[%clk 0:02:55.1]}
5... Nxc3 {[%clk 0:02:55.2]} 6. bxc3 {[%clk 0:02:56]} 6... Nc6 {[%clk
0:02:54.1]} 7. Nf3 {[%clk 0:02:52.9]} 7... Be7 {[%clk 0:02:52.1]} 8. Bb5 {[%clk
0:02:52.6]} 8... Bd7 {[%clk 0:02:50.8]} 9. O-O {[%clk 0:02:51.4]} 9... O-O
{[%clk 0:02:49.8]} 10. Bf4 {[%clk 0:02:50.8]} 10... a6 {[%clk 0:02:48.6]} 11.
Bd3 {[%clk 0:02:49.5]} 11... f5 {[%clk 0:02:17.2]} 12. Qb3 {[%clk 0:02:38.2]}
12... Na5 {[%clk 0:02:07.5]} 13. Qb1 {[%clk 0:02:10.1]} 13... Bc6 {[%clk
0:01:48.9]} 14. Be5 {[%clk 0:02:01.4]} 14... g6 {[%clk 0:01:43.3]} 15. Qe1
{[%clk 0:01:44]} 15... Bd6 {[%clk 0:01:39.1]} 16. c4 {[%clk 0:01:40.9]} 16... b6
{[%clk 0:01:36.9]} 17. d5 {[%clk 0:01:31.3]} 17... Bxe5 {[%clk 0:01:32.3]} 18.
Nxe5 {[%clk 0:01:29.7]} 18... exd5 {[%clk 0:01:28.5]} 19. cxd5 {[%clk
0:01:19.3]} 19... Bb7 {[%clk 0:01:06.9]} 20. Qe3 {[%clk 0:00:55.2]} 20... Qd6
{[%clk 0:01:02.8]} 21. exf5 {[%clk 0:00:53.8]} 21... Qxd5 {[%clk 0:00:55.6]} 22.
Qg3 {[%clk 0:00:52.7]} 22... Rae8 {[%clk 0:00:41.6]} 23. f4 {[%clk 0:00:44.1]}
23... Kh8 {[%clk 0:00:15.9]} 24. fxg6 {[%clk 0:00:43]} 24... Rg8 {[%clk
0:00:09.1]} 25. Qh3 {[%clk 0:00:35.8]} 25... Re7 {[%clk 0:00:05.1]} 26. Rad1
{[%clk 0:00:17.8]} 1-0

[Event "Betsys MČR v online bleskovém šachu 2021"]
[Site "Chess.com"]
[Date "2021.04.17"]
[Round "2"]
[White "OlifantCZ"]
[Black "Kokos3"]
[Result "1-0"]
[WhiteElo "2280"]
[BlackElo "1488"]
[TimeControl "180+1"]
[EndTime "9:17:16 PDT"]
[Termination "Uživatel OlifantCZ zvítězil na čas"]

1. c4 {[%clk 0:03:00.9]} 1... e6 {[%clk 0:02:54.2]} 2. g3 {[%clk 0:03:00.8]}
2... d5 {[%clk 0:02:51.8]} 3. Bg2 {[%clk 0:03:00.8]} 3... Nf6 {[%clk 0:02:48.6]}
4. Nf3 {[%clk 0:03:00.3]} 4... Be7 {[%clk 0:02:41.4]} 5. O-O {[%clk 0:02:59.7]}
5... O-O {[%clk 0:02:40.9]} 6. b3 {[%clk 0:02:58.7]} 6... b6 {[%clk 0:02:27.4]}
7. Bb2 {[%clk 0:02:57.1]} 7... Bb7 {[%clk 0:02:26.2]} 8. d3 {[%clk 0:02:56.4]}
8... Nbd7 {[%clk 0:02:23.1]} 9. Nc3 {[%clk 0:02:54.9]} 9... c5 {[%clk 0:02:18]}
10. e3 {[%clk 0:02:55]} 10... Re8 {[%clk 0:02:07.8]} 11. Qe2 {[%clk 0:02:52.7]}
11... Qc7 {[%clk 0:02:04.1]} 12. Rad1 {[%clk 0:02:48.4]} 12... Rad8 {[%clk
0:02:02.2]} 13. h3 {[%clk 0:02:45.6]} 13... Nf8 {[%clk 0:02:01.8]} 14. e4 {[%clk
0:02:43.5]} 14... d4 {[%clk 0:01:53.2]} 15. Nb1 {[%clk 0:02:42.9]} 15... Ng6
{[%clk 0:01:51.5]} 16. Ne1 {[%clk 0:02:38.8]} 16... e5 {[%clk 0:01:43.5]} 17.
Bc1 {[%clk 0:02:37.7]} 17... Bd6 {[%clk 0:01:37.9]} 18. Kh2 {[%clk 0:02:09.3]}
18... a6 {[%clk 0:01:37.2]} 19. h4 {[%clk 0:01:58.1]} 19... h6 {[%clk
0:01:25.9]} 20. Bh3 {[%clk 0:01:57.3]} 20... b5 {[%clk 0:01:14.1]} 21. Nd2
{[%clk 0:01:35.7]} 21... Qa5 {[%clk 0:00:57.8]} 22. a3 {[%clk 0:01:31.4]} 22...
Qc7 {[%clk 0:00:45.6]} 23. Ng2 {[%clk 0:01:30.8]} 23... Nh7 {[%clk 0:00:40.1]}
24. Nf3 {[%clk 0:00:59.9]} 24... f6 {[%clk 0:00:37.3]} 25. Ng1 {[%clk
0:00:50.2]} 25... Ne7 {[%clk 0:00:34.6]} 26. f4 {[%clk 0:00:46.6]} 26... Rf8
{[%clk 0:00:30]} 27. f5 {[%clk 0:00:46.3]} 27... Nc6 {[%clk 0:00:23.9]} 28. g4
{[%clk 0:00:45.6]} 28... Na5 {[%clk 0:00:19.9]} 29. Qc2 {[%clk 0:00:43.6]} 29...
Nc6 {[%clk 0:00:15.6]} 30. Nf3 {[%clk 0:00:42.8]} 30... Qe7 {[%clk 0:00:12.8]}
31. Rg1 {[%clk 0:00:39]} 31... Kf7 {[%clk 0:00:11.3]} 32. Nge1 {[%clk
0:00:38.7]} 32... Ke8 {[%clk 0:00:10.7]} 33. Rd2 {[%clk 0:00:38.9]} 33... Kd7
{[%clk 0:00:09.5]} 34. Rdg2 {[%clk 0:00:39.2]} 34... Rf7 {[%clk 0:00:05]} 35.
Kg3 {[%clk 0:00:38]} 35... Qf8 {[%clk 0:00:01.7]} 36. Kf2 {[%clk 0:00:38]} 1-0

[Event "Betsys MČR v online bleskovém šachu 2021"]
[Site "Chess.com"]
[Date "2021.04.17"]
[Round "2"]
[White "petrgnojek"]
[Black "TCTCGTGCTATG"]
[Result "1-0"]
[WhiteElo "2260"]
[BlackElo "1909"]
[TimeControl "180+1"]
[EndTime "9:17:20 PDT"]
[Termination "Uživatel petrgnojek zvítězil matem"]

1. d4 {[%clk 0:03:00.9]} 1... Nf6 {[%clk 0:02:59]} 2. c4 {[%clk 0:02:59.4]} 2...
g6 {[%clk 0:02:58.5]} 3. f3 {[%clk 0:02:57.7]} 3... Bg7 {[%clk 0:02:58.5]} 4. e4
{[%clk 0:02:56.9]} 4... c5 {[%clk 0:02:58.4]} 5. d5 {[%clk 0:02:56.4]} 5... d6
{[%clk 0:02:58.4]} 6. Ne2 {[%clk 0:02:54.3]} 6... b5 {[%clk 0:02:51.7]} 7. cxb5
{[%clk 0:02:53.6]} 7... a6 {[%clk 0:02:50.6]} 8. Nec3 {[%clk 0:02:53.7]} 8...
O-O {[%clk 0:02:47.1]} 9. bxa6 {[%clk 0:02:51.4]} 9... Nxa6 {[%clk 0:02:46.4]}
10. Be2 {[%clk 0:02:50.8]} 10... Bb7 {[%clk 0:02:38.9]} 11. O-O {[%clk
0:02:50.2]} 11... e6 {[%clk 0:02:38.2]} 12. dxe6 {[%clk 0:02:48]} 12... fxe6
{[%clk 0:02:37.3]} 13. Bg5 {[%clk 0:02:46.8]} 13... Qb6 {[%clk 0:02:33.2]} 14.
Na3 {[%clk 0:02:17.7]} 14... Nc7 {[%clk 0:02:23.1]} 15. Nc4 {[%clk 0:02:16.6]}
15... Qa7 {[%clk 0:01:51.5]} 16. Nxd6 {[%clk 0:02:15.3]} 16... Bc6 {[%clk
0:01:22.2]} 17. Qc2 {[%clk 0:02:10]} 17... Rab8 {[%clk 0:01:11]} 18. Kh1 {[%clk
0:02:09]} 18... Kh8 {[%clk 0:01:04.9]} 19. Rad1 {[%clk 0:02:03.4]} 19... Qb6
{[%clk 0:00:59.6]} 20. b3 {[%clk 0:01:59.5]} 20... Qa7 {[%clk 0:00:54.1]} 21.
Nc4 {[%clk 0:01:52.2]} 21... Nd7 {[%clk 0:00:49.7]} 22. Rd6 {[%clk 0:01:48.9]}
22... Bb5 {[%clk 0:00:34.1]} 23. Nxb5 {[%clk 0:01:43.4]} 23... Nxb5 {[%clk
0:00:33.5]} 24. Rd2 {[%clk 0:01:40.9]} 24... Nd4 {[%clk 0:00:32.9]} 25. Qd3
{[%clk 0:01:36.7]} 25... Nb6 {[%clk 0:00:31.2]} 26. Be3 {[%clk 0:01:33.2]} 26...
Rfd8 {[%clk 0:00:29.5]} 27. Bxd4 {[%clk 0:01:30.1]} 27... Rxd4 {[%clk
0:00:29.2]} 28. Qe3 {[%clk 0:01:29.9]} 28... Rbd8 {[%clk 0:00:28.5]} 29. Rfd1
{[%clk 0:01:29]} 29... Nxc4 {[%clk 0:00:24.9]} 30. Bxc4 {[%clk 0:01:27.7]} 30...
Rxd2 {[%clk 0:00:21.7]} 31. Rxd2 {[%clk 0:01:26.4]} 31... Bd4 {[%clk 0:00:21.1]}
32. Qg5 {[%clk 0:01:20]} 32... Qa5 {[%clk 0:00:19.6]} 33. h4 {[%clk 0:01:11.6]}
33... Kg7 {[%clk 0:00:19.4]} 34. Qe7+ {[%clk 0:00:58]} 34... Kh6 {[%clk
0:00:17.9]} 35. Qg5+ {[%clk 0:00:50.3]} 35... Kg7 {[%clk 0:00:17.8]} 36. e5
{[%clk 0:00:45.3]} 36... Rf8 {[%clk 0:00:13.7]} 37. Bxe6 {[%clk 0:00:42.4]}
37... Qa3 {[%clk 0:00:12.8]} 38. Qe7+ {[%clk 0:00:40.1]} 38... Kh6 {[%clk
0:00:12.7]} 39. Qxf8+ {[%clk 0:00:39.9]} 39... Kh5 {[%clk 0:00:12.4]} 40. Bg4+
{[%clk 0:00:37.6]} 40... Kxh4 {[%clk 0:00:09.4]} 41. Qh6+ {[%clk 0:00:38.5]}
41... Kg3 {[%clk 0:00:08.9]} 42. Qh2# {[%clk 0:00:39.4]} 1-0